bitfinex/quotes_BTCUSD_20260117
["timestamp","ask_amount","ask_price","bid_price","bid_amount"]
[1768622425707,0.01043409,95305.0,95301.0,0.01049306]
[1768622426614,0.01049284,95303.0,95300.0,5.947e-05]
[1768622426814,0.06295713,95303.0,95300.0,5.947e-05]
[1768622427045,0.01049284,95303.0,95300.0,5.947e-05]
[1768622428851,0.01049273,95304.0,95300.0,0.01055264]
[1768622429199,0.01049262,95305.0,95300.0,0.0630181]
[1768622429484,0.01049262,95305.0,95300.0,0.01055264]
[1768622429733,0.01049262,95305.0,95301.0,0.01049306]
[1768622430704,0.01031449,95306.0,95302.0,0.01049295]
[1768622431864,0.01031449,95306.0,95301.0,0.01049306]
[1768622433373,0.01049262,95305.0,95300.0,0.01055264]
[1768622433590,0.01049273,95304.0,95300.0,0.01055264]
[1768622433776,0.01049284,95303.0,95300.0,5.947e-05]
[1768622434016,0.01049262,95305.0,95300.0,0.06301847]
[1768622434155,0.01049262,95305.0,95300.0,0.01055264]
[1768622434357,0.01049273,95304.0,95300.0,0.01055264]
[1768622434539,0.01031449,95306.0,95301.0,0.01049306]
[1768622434740,0.01049284,95303.0,95300.0,5.947e-05]
[1768622435175,0.01043732,95303.0,95300.0,5.947e-05]
[1768622435374,0.05246486,95302.0,95300.0,5.947e-05]
[1768622435577,0.06290169,95303.0,95300.0,5.947e-05]
[1768622436257,0.01043732,95303.0,95300.0,5.947e-05]
[1768622436411,0.06290157,95303.0,95300.0,5.947e-05]
[1768622436734,0.01049273,95304.0,95300.0,5.947e-05]
[1768622437104,0.01049273,95304.0,95300.0,0.01055264]
[1768622437105,0.01043419,95304.0,95300.0,0.01055264]
[1768622437311,0.01049262,95305.0,95301.0,0.01049306]
[1768622437727,0.01037434,95305.0,95301.0,0.01049306]
[1768622439096,0.01037434,95305.0,95300.0,0.06301852]
[1768622439097,0.01049284,95303.0,95300.0,5.947e-05]
[1768622439304,0.01040202,95303.0,95300.0,5.947e-05]
[1768622439885,0.05246484,95302.0,95300.0,5.947e-05]
[1768622440087,0.06286641,95303.0,95300.0,5.947e-05]
[1768622440490,0.06264657,95303.0,95300.0,5.947e-05]
[1768622441226,0.01009136,95303.0,95300.0,5.947e-05]
[1768622441737,0.00979386,95303.0,95300.0,5.947e-05]
[1768622442455,0.06225823,95303.0,95300.0,5.947e-05]
[1768622442635,0.00979386,95303.0,95300.0,5.947e-05]
[1768622444553,0.06225814,95303.0,95300.0,5.947e-05]
[1768622444758,0.00979386,95303.0,95300.0,5.947e-05]
[1768622446333,0.01037434,95305.0,95300.0,0.01055264]
[1768622446514,0.06206073,95307.0,95302.0,0.01049295]
[1768622446903,0.01019511,95305.0,95301.0,0.01049306]
[1768622447632,0.01049273,95304.0,95300.0,0.01055264]
[1768622448504,0.01019511,95305.0,95301.0,0.01049306]
[1768622451094,0.01013657,95305.0,95301.0,0.01049306]
[1768622451421,0.01003326,95305.0,95301.0,0.01049306]
[1768622451753,0.00943703,95305.0,95301.0,0.01049306]
[1768622452367,0.01049251,95306.0,95302.0,0.01049295]
[1768622452788,0.01049251,95306.0,95301.0,0.01049306]
[1768622453036,0.01049262,95305.0,95301.0,0.01049306]
[1768622453602,0.01032317,95305.0,95301.0,0.01049306]
[1768622453919,0.01049251,95306.0,95302.0,0.01049295]
[1768622454289,0.01040168,95306.0,95302.0,0.01049295]
[1768622454492,0.31709328,95320.0,95307.0,0.0104924]
[1768622454716,0.31709328,95320.0,95305.0,0.01049262]
[1768622454717,0.06295231,95311.0,95305.0,0.01049262]
[1768622454891,0.01049207,95310.0,95306.0,0.01049251]
[1768622455115,0.01049207,95310.0,95305.0,0.06295538]
[1768622455315,0.01049207,95310.0,95305.0,0.01049262]
[1768622455479,0.01049207,95310.0,95306.0,0.01049251]
[1768622455480,0.01028418,95310.0,95306.0,0.01049251]
[1768622456399,0.01019335,95310.0,95306.0,0.01049251]
[1768622457964,0.01049196,95311.0,95307.0,0.0104924]
[1768622458325,0.01049207,95310.0,95306.0,0.01049251]
[1768622458526,0.01031283,95310.0,95306.0,0.01049251]
[1768622460619,0.01049218,95309.0,95305.0,0.01049262]
[1768622461659,0.01049229,95308.0,95304.0,0.01049273]
[1768622461833,0.00750642,95308.0,95304.0,0.01049273]
[1768622462968,0.01040156,95307.0,95303.0,0.01049284]
[1768622464122,0.00750642,95308.0,95303.0,0.01049284]
[1768622465664,0.01049218,95309.0,95303.0,0.01049284]
[1768622466411,0.01049218,95309.0,95305.0,0.01049262]
[1768622466613,0.06295314,95309.0,95304.0,0.01049273]
[1768622467233,0.01049229,95308.0,95304.0,0.01049273]
[1768622468302,0.01049218,95309.0,95305.0,0.01049262]
[1768622468829,0.01040134,95309.0,95305.0,0.01049262]
[1768622469108,0.01031283,95310.0,95305.0,0.01049262]
[1768622469743,0.01022199,95310.0,95305.0,0.01049262]
[1768622469977,0.01040134,95309.0,95305.0,0.01049262]
[1768622470280,0.01040134,95309.0,95304.0,0.01049273]
[1768622470732,0.01049229,95308.0,95304.0,0.01049273]
[1768622471394,0.01049229,95308.0,95303.0,0.01049284]
[1768622471640,0.01049251,95306.0,95301.0,0.01049306]
[1768622471840,0.06295585,95305.0,95300.0,0.05991104]
[1768622473009,0.01049262,95305.0,95300.0,0.05991104]
[1768622473434,0.01049273,95304.0,95300.0,0.05991104]
[1768622473874,0.01049262,95305.0,95301.0,0.01049306]
[1768622474541,0.01049229,95308.0,95304.0,0.0493584]
[1768622474998,0.01049229,95308.0,95303.0,0.01049284]
[1768622475199,0.01049229,95308.0,95303.0,0.06295672]
[1768622475618,0.01040134,95309.0,95305.0,0.01049262]
[1768622476290,0.01049229,95308.0,95304.0,0.01049273]
[1768622476582,0.01049229,95308.0,95303.0,0.01049284]
[1768622476583,0.0104924,95307.0,95303.0,0.01049284]
[1768622476809,0.01049229,95308.0,95303.0,0.01049284]
[1768622477012,0.01040134,95309.0,95304.0,0.01049273]
[1768622479073,0.01049229,95308.0,95303.0,0.01049284]
[1768622479345,0.01049229,95308.0,95304.0,0.01049273]
[1768622479960,0.01049229,95308.0,95303.0,0.01049284]
[1768622480279,0.01049207,95310.0,95304.0,0.01049273]
[1768622480484,0.01049207,95310.0,95304.0,0.0629564]
[1768622480769,0.01049196,95311.0,95306.0,0.01049251]
[1768622481064,0.01049207,95310.0,95306.0,0.01049251]
[1768622481833,0.01049207,95310.0,95305.0,0.01049262]
[1768622481834,0.01049218,95309.0,95305.0,0.01049262]
[1768622482219,0.01049229,95308.0,95304.0,0.01049273]
[1768622482659,0.0104924,95307.0,95303.0,0.01049284]
[1768622482861,0.01049229,95308.0,95303.0,0.01049284]
[1768622483698,0.0104924,95307.0,95303.0,0.01049284]
[1768622484838,0.01049251,95306.0,95302.0,0.01049295]
[1768622485719,0.05610592,95303.0,95300.0,5.947e-05]
[1768622485927,0.01049284,95303.0,95300.0,5.947e-05]
[1768622486139,0.05246487,95302.0,95300.0,5.947e-05]
[1768622486352,0.06295808,95303.0,95300.0,5.947e-05]
[1768622486962,0.01049273,95304.0,95300.0,5.947e-05]
[1768622487164,0.01049284,95303.0,95300.0,5.947e-05]
[1768622487371,0.01049262,95305.0,95300.0,0.01055264]
[1768622487780,0.01049273,95304.0,95300.0,0.01055264]
[1768622487987,0.01049262,95305.0,95300.0,0.01055264]
[1768622488221,0.01049273,95304.0,95300.0,0.01055264]
[1768622488401,0.01049284,95303.0,95300.0,5.947e-05]
[1768622488825,0.01049273,95304.0,95300.0,0.01055264]
[1768622489252,0.01049284,95303.0,95300.0,5.947e-05]
[1768622490453,0.01049273,95304.0,95300.0,5.947e-05]
[1768622490836,0.01049273,95304.0,95300.0,0.01055264]
[1768622491379,0.01049251,95306.0,95301.0,0.01049306]
[1768622491612,0.01049262,95305.0,95301.0,0.01049306]
[1768622492198,0.01049251,95306.0,95301.0,0.01049306]
[1768622492405,0.01049262,95305.0,95301.0,0.01049306]
[1768622493691,0.05246377,95304.0,95300.0,5.947e-05]
[1768622493920,0.01049284,95303.0,95300.0,5.947e-05]
[1768622494350,0.06295719,95303.0,95300.0,5.947e-05]
[1768622494592,0.0104924,95307.0,95302.0,0.06295772]
[1768622494810,0.0104924,95307.0,95302.0,0.01049295]
[1768622495028,0.01049251,95306.0,95301.0,0.01049306]
[1768622495273,0.01049251,95306.0,95302.0,0.01049295]
[1768622495719,0.01049207,95310.0,95303.0,0.01049284]
[1768622495916,0.01049218,95309.0,95304.0,0.01049273]
[1768622496215,0.01049196,95311.0,95306.0,0.01049251]
[1768622496868,0.01049207,95310.0,95306.0,0.01049251]
[1768622497459,0.01049196,95311.0,95307.0,0.0104924]
[1768622498029,0.01049207,95310.0,95306.0,0.01049251]
[1768622499976,0.01049196,95311.0,95306.0,0.01049251]
[1768622500180,0.01049196,95311.0,95305.0,0.01049262]
[1768622500181,0.01049218,95309.0,95305.0,0.01049262]
[1768622500607,0.01049229,95308.0,95304.0,0.01049273]
[1768622500990,0.01049218,95309.0,95304.0,0.01049273]
[1768622501697,0.01049218,95309.0,95302.0,0.01049295]
[1768622501901,0.06295342,95309.0,95302.0,0.01049295]
[1768622502105,0.01049229,95308.0,95303.0,0.01049284]
[1768622502704,0.01049229,95308.0,95304.0,0.01049273]
[1768622503767,0.01049207,95310.0,95305.0,0.01049262]
[1768622503948,0.01049218,95309.0,95305.0,0.01049262]
[1768622504280,0.01049229,95308.0,95304.0,0.01049273]
[1768622504637,0.01049229,95308.0,95304.0,0.0101319]
[1768622505016,0.01049218,95309.0,95305.0,0.01049262]
[1768622505219,0.01049229,95308.0,95304.0,0.0101319]
[1768622505633,0.01049218,95309.0,95305.0,0.01049262]
[1768622505835,0.01032796,95309.0,95304.0,0.0101319]
[1768622506246,0.01049196,95311.0,95305.0,0.01049262]
[1768622506445,0.01049196,95311.0,95307.0,0.0104924]
[1768622506850,0.01049185,95312.0,95307.0,0.06295424]
[1768622507258,0.01049185,95312.0,95307.0,0.0104924]
[1768622508241,0.01049185,95312.0,95308.0,0.01049229]
[1768622508891,0.01049196,95311.0,95307.0,0.0104924]
[1768622509124,0.01049185,95312.0,95308.0,0.01049229]
[1768622509586,0.01049174,95313.0,95309.0,0.01049218]
[1768622509787,0.52687106,95320.0,95309.0,0.01049218]
[1768622509788,0.01049119,95318.0,95313.0,0.01049174]
[1768622510002,0.01049108,95319.0,95314.0,0.01049163]
[1768622510462,0.01049119,95318.0,95314.0,0.01049163]
[1768622510665,0.0104913,95317.0,95313.0,0.01049174]
[1768622512452,0.01049141,95316.0,95312.0,0.01049185]
[1768622513312,0.0104913,95317.0,95313.0,0.01049174]
[1768622516657,0.0104913,95317.0,95312.0,0.01049185]
[1768622516799,0.0104913,95317.0,95313.0,0.01049174]
[1768622519527,0.0104913,95317.0,95312.0,0.01049185]
[1768622519703,0.01049141,95316.0,95312.0,0.01049185]
[1768622520105,0.01049163,95314.0,95310.0,0.01049207]
[1768622521122,0.01049163,95314.0,95309.0,0.01049218]
[1768622521530,0.01049163,95314.0,95310.0,0.01049207]
[1768622521731,0.01049163,95314.0,95309.0,0.01049218]
[1768622522162,0.01049163,95314.0,95310.0,0.01049207]
[1768622523818,0.01049152,95315.0,95311.0,0.01049196]
[1768622524025,0.01049196,95311.0,95307.0,0.0104924]
[1768622524210,0.01049196,95311.0,95306.0,0.01096894]
[1768622525263,0.01049207,95310.0,95306.0,0.01096894]
[1768622525645,0.01049207,95310.0,95306.0,0.00047643]
[1768622526101,0.01049218,95309.0,95306.0,0.00047643]
[1768622528123,0.06295326,95309.0,95306.0,0.00047643]
[1768622528351,0.01049218,95309.0,95306.0,0.00047643]
[1768622528550,0.05246154,95308.0,95306.0,0.00047643]
[1768622528760,0.01049218,95309.0,95306.0,0.00047643]
[1768622529362,0.01049207,95310.0,95306.0,0.00047643]
[1768622529592,0.01049196,95311.0,95306.0,0.01096894]
[1768622529878,0.01049196,95311.0,95307.0,0.0104924]
[1768622530645,0.01049207,95310.0,95306.0,0.00047643]
[1768622530846,0.01049196,95311.0,95306.0,0.01096894]
[1768622531336,0.01049207,95310.0,95306.0,0.01096894]
[1768622531871,0.01049196,95311.0,95307.0,0.0104924]
[1768622532074,0.01049196,95311.0,95306.0,0.01096894]
[1768622532620,0.01049207,95310.0,95306.0,0.01096894]
[1768622532976,0.01049196,95311.0,95307.0,0.0104924]
[1768622533187,0.01049185,95312.0,95308.0,0.01049229]
[1768622534003,0.01049196,95311.0,95307.0,0.0104924]
[1768622535540,0.01049218,95309.0,95306.0,0.00047643]
[1768622540311,0.01009799,95310.0,95306.0,0.01096894]
[1768622540668,0.01049218,95309.0,95306.0,0.00047643]
[1768622540873,0.01038726,95309.0,95306.0,0.00047643]
[1768622541358,0.01049196,95311.0,95306.0,0.00047643]
[1768622542347,0.01049196,95311.0,95307.0,0.0104924]
[1768622542866,0.01049185,95312.0,95307.0,0.06295436]
[1768622543278,0.01049185,95312.0,95307.0,0.0104924]
[1768622544250,0.01049185,95312.0,95308.0,0.01049229]
[1768622544460,0.01049196,95311.0,95307.0,0.0104924]
[1768622544670,0.01009784,95311.0,95307.0,0.0104924]
[1768622545334,0.01049185,95312.0,95308.0,0.01049229]
[1768622545504,0.01049196,95311.0,95306.0,0.01096894]
[1768622545709,0.01049207,95310.0,95306.0,0.01096894]
[1768622545925,0.01049185,95312.0,95307.0,0.0104924]
[1768622546328,0.01049163,95314.0,95309.0,0.01049218]
[1768622546534,0.01049152,95315.0,95310.0,0.01049207]
[1768622546738,0.01049152,95315.0,95311.0,0.01049196]
[1768622547966,0.01049141,95316.0,95312.0,0.01049185]
[1768622550517,0.01049152,95315.0,95311.0,0.01049196]
[1768622551412,0.01049163,95314.0,95309.0,0.01049218]
[1768622552120,0.01049174,95313.0,95309.0,0.01049218]
[1768622553796,0.01049163,95314.0,95310.0,0.01049207]
[1768622554399,0.01049174,95313.0,95309.0,0.01049218]
[1768622556262,0.01049163,95314.0,95309.0,0.01049218]
[1768622556695,0.01049174,95313.0,95308.0,0.01049229]
[1768622556901,0.01049174,95313.0,95307.0,0.05246166]
[1768622557049,0.01043862,95312.0,95307.0,0.0104924]
[1768622557252,0.01049196,95311.0,95307.0,0.0104924]
[1768622557582,0.01043862,95312.0,95308.0,0.01049229]
[1768622557786,0.01049196,95311.0,95307.0,0.0104924]
[1768622559177,0.01049207,95310.0,95306.0,0.01096894]
[1768622561064,0.01049196,95311.0,95307.0,0.0104924]
[1768622561265,0.01049207,95310.0,95306.0,0.01096894]
[1768622561851,0.01049218,95309.0,95306.0,0.00047643]
[1768622562058,0.05246165,95308.0,95306.0,0.00047643]
[1768622562279,0.05246204,95307.0,95306.0,0.00047643]
[1768622562480,0.05246159,95308.0,95306.0,0.00047643]
[1768622563159,0.05246204,95307.0,95306.0,0.00047643]
[1768622563802,0.05246164,95308.0,95306.0,0.00047643]
[1768622564221,0.06295332,95309.0,95306.0,0.00047643]
[1768622565130,0.01049218,95309.0,95306.0,0.00047643]
[1768622565901,0.01049207,95310.0,95306.0,0.01096894]
[1768622566102,0.01049196,95311.0,95307.0,0.0104924]
[1768622566758,0.01049174,95313.0,95308.0,0.01049229]
[1768622566961,0.01049141,95316.0,95310.0,0.01049207]
[1768622567183,0.01049141,95316.0,95312.0,0.01049185]
[1768622567391,0.01049141,95316.0,95309.0,0.05246094]
[1768622567392,0.01049152,95315.0,95311.0,0.01049196]
[1768622568261,0.01049141,95316.0,95311.0,0.01049196]
[1768622568404,0.0104913,95317.0,95312.0,0.01049185]
[1768622568913,0.0104913,95317.0,95313.0,0.01049174]
[1768622569316,0.01049119,95318.0,95314.0,0.01049163]
[1768622569567,0.01049119,95318.0,95313.0,0.01049174]
[1768622569715,0.0104913,95317.0,95313.0,0.01049174]
[1768622570327,0.01049141,95316.0,95312.0,0.01049185]
[1768622571321,0.01049141,95316.0,95311.0,0.01049196]
[1768622572354,0.06294964,95315.0,95309.0,0.01049218]
[1768622572542,0.01049152,95315.0,95310.0,0.01049207]
[1768622572829,0.01049152,95315.0,95311.0,0.01049196]
[1768622573051,0.01049152,95315.0,95310.0,0.01049207]
[1768622574344,0.01049163,95314.0,95310.0,0.01049207]
[1768622574898,0.01049163,95314.0,95309.0,0.01049218]
[1768622574899,0.01049174,95313.0,95309.0,0.01049218]
[1768622575107,0.01049174,95313.0,95308.0,0.01049229]
[1768622575880,0.01049185,95312.0,95308.0,0.01049229]
[1768622576726,0.01049196,95311.0,95306.0,0.01096894]
[1768622577022,0.01049196,95311.0,95307.0,0.0104924]
[1768622577250,0.01049207,95310.0,95306.0,0.01096894]
[1768622577444,0.01049196,95311.0,95307.0,0.0104924]
[1768622579735,0.01049207,95310.0,95306.0,0.01096894]
[1768622579969,0.01049218,95309.0,95306.0,0.00047643]
[1768622580549,0.01049207,95310.0,95306.0,0.00047643]
[1768622581425,0.01049207,95310.0,95306.0,0.01096894]
[1768622581916,0.06295262,95310.0,95306.0,0.00047643]
[1768622582225,0.01049218,95309.0,95306.0,0.00047643]
[1768622582949,0.01049185,95312.0,95308.0,0.01049229]
[1768622583124,0.01049196,95311.0,95307.0,0.0104924]
[1768622583278,0.01049185,95312.0,95308.0,0.01049229]
[1768622583485,0.01049174,95313.0,95309.0,0.01049218]
[1768622584093,0.01049185,95312.0,95308.0,0.01049229]
[1768622584317,0.01049185,95312.0,95307.0,0.0104924]
[1768622584695,0.01049196,95311.0,95307.0,0.0104924]
[1768622585027,0.01040111,95311.0,95307.0,0.0104924]
[1768622586405,0.01049207,95310.0,95306.0,0.01096894]
[1768622587229,0.01049174,95313.0,95307.0,0.0104924]
[1768622587437,0.01049185,95312.0,95308.0,0.01049229]
[1768622587646,0.01049174,95313.0,95308.0,0.01049229]
[1768622587850,0.01049174,95313.0,95309.0,0.01049218]
[1768622589107,0.01049163,95314.0,95309.0,0.01049218]
[1768622589311,0.01049174,95313.0,95309.0,0.01049218]
[1768622591606,0.01049185,95312.0,95308.0,0.01049229]
[1768622592954,0.01049196,95311.0,95307.0,0.0104924]
[1768622594363,0.01049207,95310.0,95306.0,0.01096894]
[1768622596268,0.01049196,95311.0,95306.0,0.01096894]
[1768622596691,0.01049207,95310.0,95306.0,0.01096894]
[1768622599618,0.01049196,95311.0,95307.0,0.0104924]
[1768622600718,0.01049196,95311.0,95308.0,0.01096894]
[1768622602132,0.01049185,95312.0,95308.0,0.01096894]
[1768622605383,0.01049185,95312.0,95308.0,0.02146123]
[1768622605826,0.01049163,95314.0,95309.0,0.01049218]
[1768622606017,0.01049163,95314.0,95310.0,0.01049207]
[1768622606450,0.01049174,95313.0,95308.0,0.02146123]
[1768622606683,0.01049174,95313.0,95309.0,0.01049218]
[1768622606887,0.01049163,95314.0,95310.0,0.01049207]
[1768622607824,0.01049163,95314.0,95310.0,0.041963]
[1768622612134,0.01049174,95313.0,95310.0,0.03147093]
[1768622613629,0.06295052,95313.0,95310.0,0.03147093]
[1768622615345,0.06295068,95313.0,95310.0,0.03147093]
[1768622620048,0.05245948,95312.0,95310.0,0.03147093]
[1768622620256,0.06295065,95313.0,95310.0,0.03147093]
[1768622621101,0.05245984,95311.0,95310.0,0.03147093]
[1768622621680,0.04426299,95311.0,95310.0,0.03147093]
[1768622622126,0.05475495,95311.0,95307.0,0.0104924]
[1768622622350,0.05475495,95311.0,95308.0,0.03147093]
[1768622622788,0.01049196,95311.0,95308.0,0.03147093]
[1768622623001,0.06295197,95311.0,95308.0,0.03147093]
[1768622624235,0.01049196,95311.0,95308.0,0.03147093]
[1768622632690,0.01049174,95313.0,95308.0,0.09442435]
[1768622633268,0.01049174,95313.0,95308.0,0.01049229]
[1768622633614,0.01049174,95313.0,95309.0,0.03147093]
[1768622633912,0.01049174,95313.0,95309.0,0.04196311]
[1768622634238,0.01049174,95313.0,95309.0,0.01049218]
[1768622637539,0.01049174,95313.0,95310.0,0.01049174]
[1768622639700,0.0629507,95313.0,95310.0,0.01049174]
[1768622641116,0.01049174,95313.0,95310.0,0.01049174]
[1768622645598,0.01049141,95316.0,95312.0,0.01049185]
[1768622646022,0.06294874,95316.0,95311.0,0.01049196]
[1768622646233,0.01049152,95315.0,95311.0,0.01049196]
[1768622646596,0.01049141,95316.0,95312.0,0.01049185]
[1768622647016,0.01049141,95316.0,95311.0,0.01049196]
[1768622649065,0.01049141,95316.0,95312.0,0.01049185]
[1768622650336,0.01049152,95315.0,95311.0,0.01049196]
[1768622650572,0.01049141,95316.0,95312.0,0.01049185]
[1768622651755,0.01049152,95315.0,95311.0,0.01049196]
[1768622653081,0.01049163,95314.0,95310.0,0.02098381]
[1768622655930,0.01049152,95315.0,95310.0,0.02098381]
[1768622657067,0.01049163,95314.0,95310.0,0.02098381]
[1768622657510,0.01049163,95314.0,95310.0,0.01049174]
[1768622657511,0.01049174,95313.0,95310.0,0.01049174]
[1768622657936,0.01049163,95314.0,95310.0,0.01049174]
[1768622660399,0.01049163,95314.0,95310.0,0.02098381]
[1768622660907,0.01049163,95314.0,95310.0,0.01049207]
[1768622661207,0.01049163,95314.0,95311.0,0.03147093]
[1768622662416,0.06295001,95314.0,95311.0,0.03147093]
[1768622663572,0.01049163,95314.0,95311.0,0.03147093]
[1768622664230,0.06294983,95314.0,95311.0,0.03147093]
[1768622666246,0.05245876,95313.0,95311.0,0.03147093]
[1768622666385,0.01049163,95314.0,95311.0,0.03147093]
[1768622669314,0.01049141,95316.0,95311.0,0.04196289]
[1768622669453,0.01049152,95315.0,95311.0,0.03147093]
[1768622670130,0.01049152,95315.0,95311.0,0.04196289]
[1768622671056,0.0104913,95317.0,95312.0,0.01049185]
[1768622671271,0.06294733,95318.0,95313.0,0.01049174]
[1768622671762,0.01049108,95319.0,95314.0,0.04746188]
[1768622672000,0.0104913,95317.0,95313.0,0.01049174]
[1768622674691,0.0104913,95317.0,95312.0,0.01049185]
[1768622674870,0.01049141,95316.0,95311.0,0.04196289]
[1768622676171,0.01049152,95315.0,95311.0,0.04196289]
[1768622676372,0.01040065,95315.0,95311.0,0.04196289]
[1768622677275,0.01049163,95314.0,95311.0,0.03147093]
[1768622677916,0.06285832,95315.0,95311.0,0.03147093]
[1768622678795,0.05245915,95313.0,95311.0,0.03147093]
[1768622679201,0.04262306,95313.0,95311.0,0.03147093]
[1768622679861,0.01049163,95314.0,95311.0,0.03147093]
[1768622680808,0.05245913,95313.0,95311.0,0.03147093]
[1768622681622,0.01049163,95314.0,95311.0,0.03147093]
[1768622684897,0.0629499,95314.0,95311.0,0.03147093]
[1768622685723,0.01049163,95314.0,95311.0,0.03147093]
[1768622687067,0.01040065,95315.0,95311.0,0.03147093]
[1768622687720,0.01040065,95315.0,95311.0,0.04196289]
[1768622688235,0.01049163,95314.0,95311.0,0.03147093]
[1768622689176,0.06295011,95314.0,95311.0,0.03147093]
[1768622689368,0.06295,95314.0,95311.0,0.03147093]
[1768622690128,0.01049163,95314.0,95311.0,0.03147093]
[1768622691483,0.06295024,95314.0,95311.0,0.03147093]
[1768622691699,0.01049163,95314.0,95311.0,0.03147093]
[1768622692430,0.01040065,95315.0,95311.0,0.04196289]
[1768622693533,0.01049163,95314.0,95311.0,0.03147093]
[1768622695194,0.01040065,95315.0,95311.0,0.04196289]
[1768622695403,0.01040065,95315.0,95311.0,0.03147093]
[1768622695928,0.01049141,95316.0,95312.0,0.01049185]
[1768622696383,0.0104913,95317.0,95312.0,0.01049185]
[1768622696802,0.01049141,95316.0,95312.0,0.02098326]
[1768622697017,0.0104913,95317.0,95313.0,0.01049174]
[1768622697408,0.01049141,95316.0,95312.0,0.02098326]
[1768622698451,0.0104913,95317.0,95313.0,0.01049174]
[1768622698666,0.0104913,95317.0,95312.0,0.02098326]
[1768622699066,0.01049141,95316.0,95312.0,0.02098326]
[1768622700208,0.01049152,95315.0,95312.0,0.01049141]
[1768622700415,0.01049141,95316.0,95312.0,0.01049141]
[1768622700814,0.01049141,95316.0,95312.0,0.02098326]
[1768622701832,0.01049152,95315.0,95312.0,0.01049141]
[1768622705587,0.05245819,95314.0,95312.0,0.01049141]
[1768622705798,0.05245874,95313.0,95312.0,0.01049141]
[1768622708003,0.0524583,95314.0,95312.0,0.01049141]
[1768622709128,0.06294934,95315.0,95312.0,0.01049141]
[1768622710284,0.01049152,95315.0,95312.0,0.01049141]
[1768622712161,0.01049141,95316.0,95312.0,0.01049141]
[1768622712550,0.01049141,95316.0,95312.0,0.02098326]
[1768622714157,0.06294856,95316.0,95312.0,0.01049141]
[1768622717367,0.06294957,95315.0,95312.0,0.01049141]
[1768622718100,0.01049152,95315.0,95312.0,0.01049141]
[1768622718534,0.06294921,95315.0,95312.0,0.01049141]
[1768622719922,0.01049163,95314.0,95310.0,0.01049207]
[1768622720139,0.01049163,95314.0,95311.0,0.01049218]
[1768622720579,0.01049174,95313.0,95309.0,0.01049218]
[1768622722198,0.01049163,95314.0,95310.0,0.01049207]
[1768622723035,0.01049174,95313.0,95309.0,0.01049218]
[1768622724834,0.01049163,95314.0,95308.0,0.01049229]
[1768622725430,0.05245916,95313.0,95308.0,0.01049229]
[1768622726351,0.01049185,95312.0,95308.0,0.01049229]
[1768622726509,0.01049185,95312.0,95307.0,0.01096433]
[1768622726755,0.01049185,95312.0,95307.0,0.00047193]
[1768622726756,0.01049207,95310.0,95307.0,0.00047193]
[1768622726969,0.06295251,95310.0,95307.0,0.00047193]
[1768622727183,0.05246526,95302.0,95300.0,5.947e-05]
[1768622727407,0.0081442,95303.0,95300.0,5.947e-05]
[1768622730026,0.0104935,95297.0,95291.0,0.01049417]
[1768622730224,0.01054077,95297.0,95292.0,0.01049406]
[1768622730500,0.01054077,95297.0,95292.0,0.06296398]
[1768622730702,0.01054077,95297.0,95294.0,0.01065348]
[1768622730703,0.01049361,95296.0,95294.0,0.01065348]
[1768622731114,0.01054077,95297.0,95293.0,0.01049395]
[1768622731358,4.727e-05,95297.0,95294.0,0.01049384]
[1768622731654,0.01054077,95297.0,95292.0,0.01049406]
[1768622732029,4.727e-05,95297.0,95293.0,0.01049395]
[1768622732214,4.727e-05,95297.0,95294.0,0.01049384]
[1768622733487,4.727e-05,95297.0,95294.0,0.06296296]
[1768622733692,4.727e-05,95297.0,95294.0,0.01049384]
[1768622734517,4.727e-05,95297.0,95294.0,0.06296287]
[1768622734740,4.727e-05,95297.0,95295.0,0.05246854]
[1768622735402,4.727e-05,95297.0,95294.0,0.062963]
[1768622736696,4.727e-05,95297.0,95295.0,0.05246861]
[1768622737329,4.727e-05,95297.0,95292.0,0.01049406]
[1768622737545,0.01054077,95297.0,95292.0,0.02098723]
[1768622737759,0.01049372,95295.0,95292.0,0.01049317]
[1768622737994,0.01049372,95295.0,95291.0,0.01049417]
[1768622738234,0.01049361,95296.0,95292.0,0.01049406]
[1768622739350,0.01054077,95297.0,95293.0,0.01049395]
[1768622739568,0.01054077,95297.0,95292.0,0.01049406]
[1768622740201,0.01049361,95296.0,95292.0,0.01049406]
[1768622740995,0.01054077,95297.0,95293.0,0.01049395]
[1768622741163,0.01054077,95297.0,95292.0,0.01049406]
[1768622741365,0.01049361,95296.0,95292.0,0.01049406]
[1768622741568,4.727e-05,95297.0,95293.0,0.01049395]
[1768622741773,0.01049306,95301.0,95296.0,0.01049361]
[1768622742341,0.01049295,95302.0,95298.0,0.01049339]
[1768622742766,0.01049306,95301.0,95297.0,0.0104935]
[1768622743965,0.01049317,95300.0,95296.0,0.01049361]
[1768622744304,0.01049306,95301.0,95297.0,0.0104935]
[1768622745176,0.01049317,95300.0,95296.0,0.01449361]
[1768622746118,0.01049306,95301.0,95297.0,0.0104935]
[1768622747826,0.01049306,95301.0,95296.0,0.01449361]
[1768622748039,0.06295777,95302.0,95297.0,0.0104935]
[1768622748040,0.01049295,95302.0,95297.0,0.0104935]
[1768622748247,0.01049306,95301.0,95297.0,0.0104935]
[1768622748862,0.01049317,95300.0,95296.0,0.01449361]
[1768622750139,0.01049306,95301.0,95297.0,0.0104935]
[1768622750365,0.01049295,95302.0,95297.0,0.0104935]
[1768622750580,0.12712,95304.0,95300.0,0.01049317]
[1768622750801,0.12712,95304.0,95301.0,0.01049306]
[1768622751033,0.12712,95304.0,95301.0,0.06295803]
[1768622751260,0.12712,95304.0,95301.0,0.01049306]
[1768622752925,0.12712,95304.0,95301.0,0.06295811]
[1768622753161,0.12712,95304.0,95301.0,0.06295838]
[1768622753606,0.12712,95304.0,95301.0,0.01049306]
[1768622754288,0.12712,95304.0,95301.0,0.06295817]
[1768622754490,0.12712,95304.0,95301.0,0.01049306]
[1768622759169,0.12712,95304.0,95300.0,0.01049317]
[1768622759384,0.13761273,95304.0,95300.0,0.01049317]
[1768622759595,0.12712,95304.0,95300.0,0.01049317]
[1768622760019,0.12712,95303.0,95300.0,0.06295901]
[1768622760219,0.12712,95303.0,95300.0,0.01049317]
[1768622762047,0.12712,95303.0,95300.0,0.06295888]
[1768622762498,0.12712,95303.0,95300.0,0.01049317]
[1768622763134,0.12712,95303.0,95300.0,0.06295904]
[1768622765146,0.12712,95303.0,95300.0,0.01049317]
[1768622766432,0.12712,95303.0,95300.0,0.06295898]
[1768622766590,0.12712,95303.0,95300.0,0.01049317]
[1768622769011,0.13761284,95303.0,95299.0,0.01049328]
[1768622771144,0.12712,95303.0,95300.0,0.01049317]
[1768622771280,0.13761284,95303.0,95299.0,0.01049328]
[1768622773698,0.01049295,95302.0,95298.0,0.01049339]
[1768622774693,0.01049317,95300.0,95296.0,0.004]
[1768622775288,0.01049328,95299.0,95296.0,0.004]
[1768622776023,0.06295977,95299.0,95296.0,0.004]
[1768622776155,0.01049328,95299.0,95296.0,0.004]
[1768622779155,0.01049306,95301.0,95296.0,0.01449361]
[1768622779313,0.01049317,95300.0,95296.0,0.01449361]
[1768622780727,0.01049328,95299.0,95296.0,0.004]
[1768622784124,0.01049317,95300.0,95296.0,0.01449361]
[1768622784248,0.01049328,95299.0,95296.0,0.004]
[1768622784460,0.06295987,95299.0,95296.0,0.00270786]